[Event "Titled Tuesday Blitz May 11 2021"]
[White "gurelediz"]
[Black "Sliwicki, Damian"]
[BlackFideId "1127128"]
[WhiteElo "2740"]
[BlackElo "2149"]
[Result "1-0"]
[Round "01"]
[TimeControl "180+1"]
[Date "2021.05.11"]
[WhiteClock "0:00:18"]
[BlackClock "0:00:14"]

1. e4 {[%clk 0:02:57]}  c5 {[%clk 0:02:52]} 2. Nf3 {[%clk 0:02:56]}  g6 {[%clk 0:02:52]} 3. d4 {[%clk 0:02:56]}  cxd4 {[%clk 0:02:52]} 4. Qxd4 {[%clk 0:02:56]}  Nf6 {[%clk 0:02:52]} 5. e5 {[%clk 0:02:56]}  Nc6 {[%clk 0:02:52]} 6. Qa4 {[%clk 0:02:57]}  Nd5 {[%clk 0:02:52]} 7. Qb3 {[%clk 0:02:57]}  Nc7 {[%clk 0:02:50]} 8. Bf4 {[%clk 0:02:56]}  Bg7 {[%clk 0:02:50]} 9. Bc4 {[%clk 0:02:53]}  O-O {[%clk 0:02:50]} 10. O-O {[%clk 0:02:53]}  Na5 {[%clk 0:02:49]} 11. Qa4 {[%clk 0:02:53]}  Nxc4 {[%clk 0:02:39]} 12. Qxc4 {[%clk 0:02:54]}  Ne6 {[%clk 0:02:39]} 13. Nc3 {[%clk 0:02:49]}  b5 {[%clk 0:02:22]} 14. Nxb5 {[%clk 0:02:38]}  Ba6 {[%clk 0:02:22]} 15. Bg3 {[%clk 0:02:38]}  Rc8 {[%clk 0:02:10]} 16. Qa4 {[%clk 0:02:28]}  Qb6 {[%clk 0:01:59]} 17. c4 {[%clk 0:02:22]}  Rxc4 {[%clk 0:01:49]} 18. Qxc4 {[%clk 0:02:19]}  Bxb5 {[%clk 0:01:50]} 19. Qc2 {[%clk 0:02:06]}  Bxf1 {[%clk 0:01:48]} 20. Rxf1 {[%clk 0:02:07]}  Qa6 {[%clk 0:01:34]} 21. a3 {[%clk 0:02:02]}  Rc8 {[%clk 0:01:34]} 22. Qd2 {[%clk 0:02:01]}  Qc6 {[%clk 0:01:17]} 23. h3 {[%clk 0:02:00]}  h6 {[%clk 0:01:16]} 24. Rd1 {[%clk 0:02:00]}  Rc7 {[%clk 0:01:09]} 25. Qb4 {[%clk 0:01:46]}  Qc2 {[%clk 0:01:04]} 26. Rd2 {[%clk 0:01:41]}  Qb1+ {[%clk 0:01:00]} 27. Kh2 {[%clk 0:01:40]}  Rc1 {[%clk 0:01:01]} 28. Bf4 {[%clk 0:01:30]}  Rh1+ {[%clk 0:00:57]} 29. Kg3 {[%clk 0:01:30]}  g5 {[%clk 0:00:47]} 30. Be3 {[%clk 0:01:24]}  Qf5 {[%clk 0:00:42]} 31. Rxd7 {[%clk 0:00:57]}  h5 {[%clk 0:00:32]} 32. Qxe7 {[%clk 0:00:20]}  h4+ {[%clk 0:00:25]} 33. Nxh4 {[%clk 0:00:20]}  Bxe5+ {[%clk 0:00:25]} 34. f4 {[%clk 0:00:21]}  gxh4+ {[%clk 0:00:18]} 35. Qxh4 {[%clk 0:00:17]}  Nxf4 {[%clk 0:00:15]} 36. Rd8+ {[%clk 0:00:17]}  Kg7 {[%clk 0:00:13]} 37. Qh8+ {[%clk 0:00:17]}  Kg6 {[%clk 0:00:14]} 38. Rg8+ {[%clk 0:00:18]} 1-0


[Site "https://www.chess.com"]

[Event "Titled Tuesday Blitz May 11 2021"]
[White "Abdrlauf, Elham"]
[Black "Gelman, Alexander"]
[WhiteFideId "1533533"]
[BlackFideId "4118316"]
[WhiteElo "2326"]
[BlackElo "2375"]
[Result "1-0"]
[Round "02"]
[TimeControl "180+1"]
[Date "2021.05.11"]
[WhiteClock "0:00:03"]
[BlackClock "0:00:05"]

1. e4 {[%clk 0:03:00]}  c5 {[%clk 0:02:59]} 2. Nf3 {[%clk 0:03:01]}  e6 {[%clk 0:02:59]} 3. c3 {[%clk 0:03:01]}  Nc6 {[%clk 0:02:59]} 4. d4 {[%clk 0:03:01]}  d5 {[%clk 0:02:59]} 5. e5 {[%clk 0:03:00]}  Bd7 {[%clk 0:02:59]} 6. Bd3 {[%clk 0:02:59]}  cxd4 {[%clk 0:02:59]} 7. cxd4 {[%clk 0:03:00]}  Qb6 {[%clk 0:02:59]} 8. Nbd2 {[%clk 0:02:47]}  Nxd4 {[%clk 0:02:54]} 9. Nxd4 {[%clk 0:02:48]}  Qxd4 {[%clk 0:02:54]} 10. Nf3 {[%clk 0:02:49]}  Bb4+ {[%clk 0:02:37]} 11. Ke2 {[%clk 0:02:47]}  Qb6 {[%clk 0:02:22]} 12. a3 {[%clk 0:02:37]}  Be7 {[%clk 0:02:14]} 13. b4 {[%clk 0:02:36]}  Nh6 {[%clk 0:02:04]} 14. Be3 {[%clk 0:02:34]}  Qd8 {[%clk 0:02:02]} 15. h3 {[%clk 0:02:15]}  Nf5 {[%clk 0:01:52]} 16. Bf4 {[%clk 0:01:36]}  Rc8 {[%clk 0:01:32]} 17. g4 {[%clk 0:01:31]}  Nh4 {[%clk 0:01:24]} 18. Nd4 {[%clk 0:01:31]}  Ng6 {[%clk 0:01:08]} 19. Bg3 {[%clk 0:01:24]}  O-O {[%clk 0:00:50]} 20. Re1 {[%clk 0:01:00]}  f6 {[%clk 0:00:49]} 21. exf6 {[%clk 0:00:55]}  Bxf6 {[%clk 0:00:44]} 22. Kf1 {[%clk 0:00:45]}  Bxd4 {[%clk 0:00:39]} 23. Ra2 {[%clk 0:00:29]}  Qf6 {[%clk 0:00:36]} 24. Kg2 {[%clk 0:00:27]}  Nf4+ {[%clk 0:00:35]} 25. Kh2 {[%clk 0:00:26]}  Nxd3 {[%clk 0:00:34]} 26. Qxd3 {[%clk 0:00:27]}  Rc3 {[%clk 0:00:32]} 27. Qe2 {[%clk 0:00:22]}  Rf3 {[%clk 0:00:29]} 28. Kg2 {[%clk 0:00:20]}  e5 {[%clk 0:00:24]} 29. Rd2 {[%clk 0:00:18]}  e4 {[%clk 0:00:23]} 30. g5 {[%clk 0:00:15]}  Qb6 {[%clk 0:00:16]} 31. Red1 {[%clk 0:00:13]}  Bxf2 {[%clk 0:00:14]} 32. Bh2 {[%clk 0:00:10]}  Bxh3+ {[%clk 0:00:14]} 33. Kh1 {[%clk 0:00:10]}  Be3 {[%clk 0:00:12]} 34. Rxd5 {[%clk 0:00:10]}  Bf4 {[%clk 0:00:10]} 35. Bg1 {[%clk 0:00:04]}  Qg6 {[%clk 0:00:10]} 36. Rd8 {[%clk 0:00:02]}  Qh5 {[%clk 0:00:08]} 37. Qc4+ {[%clk 0:00:02]}  Qf7 {[%clk 0:00:07]} 38. Rxf8+ {[%clk 0:00:02]}  Kxf8 {[%clk 0:00:07]} 39. Rd8+ {[%clk 0:00:03]}  Ke7 {[%clk 0:00:08]} 40. Bc5+ {[%clk 0:00:01]}  Kxd8 {[%clk 0:00:07]} 41. Qxf7 {[%clk 0:00:02]}  Rf1+ {[%clk 0:00:07]} 42. Bg1 {[%clk 0:00:02]}  Bg4 {[%clk 0:00:06]} 43. Qg8+ {[%clk 0:00:02]}  Ke7 {[%clk 0:00:06]} 44. Qxg7+ {[%clk 0:00:03]}  Ke6 {[%clk 0:00:06]} 45. Qf6+ {[%clk 0:00:02]}  Kd5 {[%clk 0:00:07]} 46. Qd4+ {[%clk 0:00:03]}  Kc6 {[%clk 0:00:05]} 47. Qxe4+ {[%clk 0:00:03]}  Kb5 {[%clk 0:00:06]} 48. Qd3+ {[%clk 0:00:03]}  Ka4 {[%clk 0:00:06]} 49. Qxf1 {[%clk 0:00:03]}  Bxg5 {[%clk 0:00:06]} 50. Qg2 {[%clk 0:00:03]}  h5 {[%clk 0:00:06]} 51. Qxb7 {[%clk 0:00:03]}  Bf4 {[%clk 0:00:05]} 52. Bxa7 {[%clk 0:00:03]} 1-0


[Site "https://www.chess.com"]

[Event "Titled Tuesday Blitz May 11 2021"]
[White "Ambartsumova, Karina"]
[Black "Vogel, Roven"]
[WhiteFideId "4166299"]
[BlackFideId "12908088"]
[WhiteElo "2262"]
[BlackElo "2516"]
[Result "0-1"]
[Round "02"]
[TimeControl "180+1"]
[Date "2021.05.11"]
[WhiteClock "0:00:07"]
[BlackClock "0:00:27"]

1. d4 {[%clk 0:03:00]}  d5 {[%clk 0:02:57]} 2. Nf3 {[%clk 0:02:58]}  Nf6 {[%clk 0:02:57]} 3. c4 {[%clk 0:02:58]}  e6 {[%clk 0:02:57]} 4. Nc3 {[%clk 0:02:51]}  a6 {[%clk 0:02:57]} 5. cxd5 {[%clk 0:02:49]}  exd5 {[%clk 0:02:58]} 6. Bg5 {[%clk 0:02:48]}  Be6 {[%clk 0:02:57]} 7. e3 {[%clk 0:02:48]}  Nbd7 {[%clk 0:02:56]} 8. Bd3 {[%clk 0:02:48]}  Bd6 {[%clk 0:02:57]} 9. O-O {[%clk 0:02:48]}  O-O {[%clk 0:02:55]} 10. Qc2 {[%clk 0:02:47]}  Qb8 {[%clk 0:02:44]} 11. Bh4 {[%clk 0:02:31]}  h6 {[%clk 0:02:42]} 12. a3 {[%clk 0:02:24]}  c6 {[%clk 0:02:41]} 13. Bg3 {[%clk 0:02:15]}  Bg4 {[%clk 0:02:39]} 14. Nd2 {[%clk 0:02:10]}  Re8 {[%clk 0:02:36]} 15. b4 {[%clk 0:02:03]}  b5 {[%clk 0:02:33]} 16. Rae1 {[%clk 0:01:52]}  Nb6 {[%clk 0:02:29]} 17. Bxd6 {[%clk 0:01:23]}  Qxd6 {[%clk 0:02:30]} 18. f3 {[%clk 0:01:00]}  Bd7 {[%clk 0:02:29]} 19. Nb3 {[%clk 0:00:59]}  Nc4 {[%clk 0:02:10]} 20. Qc1 {[%clk 0:00:59]}  a5 {[%clk 0:01:59]} 21. Nc5 {[%clk 0:00:56]}  axb4 {[%clk 0:01:58]} 22. axb4 {[%clk 0:00:57]}  Re7 {[%clk 0:01:44]} 23. Rf2 {[%clk 0:00:56]}  Rae8 {[%clk 0:01:43]} 24. Rfe2 {[%clk 0:00:56]}  Bc8 {[%clk 0:01:43]} 25. Nd1 {[%clk 0:00:49]}  h5 {[%clk 0:01:41]} 26. Qc2 {[%clk 0:00:46]}  g6 {[%clk 0:01:31]} 27. Qc3 {[%clk 0:00:39]}  Rd8 {[%clk 0:01:16]} 28. Nf2 {[%clk 0:00:35]}  h4 {[%clk 0:01:13]} 29. Nb3 {[%clk 0:00:34]}  h3 {[%clk 0:01:07]} 30. g3 {[%clk 0:00:30]}  Nh7 {[%clk 0:01:06]} 31. e4 {[%clk 0:00:23]}  Ng5 {[%clk 0:01:06]} 32. Bb1 {[%clk 0:00:23]}  Qf6 {[%clk 0:01:02]} 33. f4 {[%clk 0:00:20]}  Nxe4 {[%clk 0:01:01]} 34. Nxe4 {[%clk 0:00:21]}  dxe4 {[%clk 0:01:01]} 35. Bxe4 {[%clk 0:00:22]}  Rde8 {[%clk 0:00:55]} 36. Bf3 {[%clk 0:00:22]}  Rxe2 {[%clk 0:00:47]} 37. Rxe2 {[%clk 0:00:23]}  Rxe2 {[%clk 0:00:46]} 38. Bxe2 {[%clk 0:00:24]}  Be6 {[%clk 0:00:47]} 39. Kf2 {[%clk 0:00:23]}  Bd5 {[%clk 0:00:46]} 40. Nc5 {[%clk 0:00:20]}  Nd6 {[%clk 0:00:39]} 41. Bf3 {[%clk 0:00:19]}  Nf5 {[%clk 0:00:33]} 42. Bxd5 {[%clk 0:00:18]}  cxd5 {[%clk 0:00:32]} 43. Nb3 {[%clk 0:00:19]}  Nd6 {[%clk 0:00:31]} 44. Kg1 {[%clk 0:00:17]}  Qf5 {[%clk 0:00:30]} 45. Qe3 {[%clk 0:00:15]}  Qb1+ {[%clk 0:00:28]} 46. Kf2 {[%clk 0:00:13]}  Ne4+ {[%clk 0:00:28]} 47. Kf3 {[%clk 0:00:12]}  Qxb3 {[%clk 0:00:27]} 48. Qxb3 {[%clk 0:00:09]}  Nd2+ {[%clk 0:00:27]} 49. Kg4 {[%clk 0:00:08]}  Nxb3 {[%clk 0:00:27]} 50. Kxh3 {[%clk 0:00:07]}  Nxd4 {[%clk 0:00:27]} 0-1


[Site "https://www.chess.com"]

[Event "Titled Tuesday Blitz May 11 2021"]
[White "Anton Guijarro, David"]
[Black "Espinosa Veloz, Ermes"]
[WhiteFideId "2285525"]
[BlackFideId "3507424"]
[WhiteElo "2629"]
[BlackElo "2333"]
[Result "1-0"]
[Round "02"]
[TimeControl "180+1"]
[Date "2021.05.11"]
[WhiteClock "0:01:17"]
[BlackClock "0:00:14"]

1. c4 {[%clk 0:03:00]}  e5 {[%clk 0:02:59]} 2. g3 {[%clk 0:03:00]}  Nf6 {[%clk 0:02:59]} 3. Bg2 {[%clk 0:03:01]}  c6 {[%clk 0:02:59]} 4. d4 {[%clk 0:02:58]}  e4 {[%clk 0:02:59]} 5. Bg5 {[%clk 0:02:54]}  d5 {[%clk 0:02:43]} 6. Bxf6 {[%clk 0:02:49]}  Qxf6 {[%clk 0:02:42]} 7. Nc3 {[%clk 0:02:43]}  Bb4 {[%clk 0:02:40]} 8. e3 {[%clk 0:02:43]}  h5 {[%clk 0:02:35]} 9. h3 {[%clk 0:02:16]}  h4 {[%clk 0:02:33]} 10. g4 {[%clk 0:02:16]}  Qg6 {[%clk 0:02:31]} 11. Ne2 {[%clk 0:02:14]}  f5 {[%clk 0:02:16]} 12. Nf4 {[%clk 0:02:12]}  Qg5 {[%clk 0:02:11]} 13. cxd5 {[%clk 0:02:09]}  fxg4 {[%clk 0:02:09]} 14. Qb3 {[%clk 0:02:01]}  Bxc3+ {[%clk 0:02:01]} 15. bxc3 {[%clk 0:02:00]}  g3 {[%clk 0:01:57]} 16. O-O {[%clk 0:01:50]}  Na6 {[%clk 0:01:21]} 17. f3 {[%clk 0:01:38]}  exf3 {[%clk 0:01:17]} 18. Rxf3 {[%clk 0:01:37]}  cxd5 {[%clk 0:01:02]} 19. Nxd5 {[%clk 0:01:34]}  Be6 {[%clk 0:01:00]} 20. Rf4 {[%clk 0:01:29]}  Rd8 {[%clk 0:00:49]} 21. Re4 {[%clk 0:01:17]}  O-O {[%clk 0:00:17]} 22. Rxe6 {[%clk 0:01:16]}  Rf2 {[%clk 0:00:17]} 23. Nf4 {[%clk 0:01:17]}  Kh8 {[%clk 0:00:15]} 24. Re5 {[%clk 0:01:17]}  Qf6 {[%clk 0:00:14]} 25. Rh5+ {[%clk 0:01:17]} 1-0


[Site "https://www.chess.com"]

[Event "Titled Tuesday Blitz May 11 2021"]
[White "Baches Garcia, Guillermo"]
[Black "Mitrabha, Guha"]
[WhiteFideId "2209764"]
[BlackFideId "5057000"]
[WhiteElo "2435"]
[BlackElo "2334"]
[Result "1/2-1/2"]
[Round "02"]
[TimeControl "180+1"]
[Date "2021.05.11"]
[WhiteClock "0:00:12"]
[BlackClock "0:01:40"]

1. e4 {[%clk 0:03:00]}  c6 {[%clk 0:02:58]} 2. c4 {[%clk 0:02:59]}  g6 {[%clk 0:02:58]} 3. d4 {[%clk 0:02:58]}  Bg7 {[%clk 0:02:59]} 4. Nc3 {[%clk 0:02:58]}  d6 {[%clk 0:02:59]} 5. f4 {[%clk 0:02:58]}  e5 {[%clk 0:02:55]} 6. fxe5 {[%clk 0:02:54]}  dxe5 {[%clk 0:02:55]} 7. d5 {[%clk 0:02:54]}  Nf6 {[%clk 0:02:51]} 8. Nf3 {[%clk 0:02:53]}  O-O {[%clk 0:02:51]} 9. Bd3 {[%clk 0:02:51]}  Bg4 {[%clk 0:02:50]} 10. O-O {[%clk 0:02:51]}  Nbd7 {[%clk 0:02:51]} 11. Be3 {[%clk 0:02:48]}  Nh5 {[%clk 0:02:50]} 12. h3 {[%clk 0:02:36]}  Bxf3 {[%clk 0:02:48]} 13. Qxf3 {[%clk 0:02:36]}  c5 {[%clk 0:02:44]} 14. g3 {[%clk 0:02:14]}  b6 {[%clk 0:02:40]} 15. Rf2 {[%clk 0:02:07]}  a6 {[%clk 0:02:40]} 16. Raf1 {[%clk 0:02:06]}  Qe7 {[%clk 0:02:38]} 17. Bc2 {[%clk 0:01:51]}  Ndf6 {[%clk 0:02:31]} 18. Ba4 {[%clk 0:01:38]}  Rad8 {[%clk 0:02:29]} 19. Kg2 {[%clk 0:01:27]}  Kh8 {[%clk 0:02:24]} 20. Bc6 {[%clk 0:01:22]}  Ng8 {[%clk 0:02:24]} 21. a3 {[%clk 0:01:14]}  Bh6 {[%clk 0:02:21]} 22. Na4 {[%clk 0:00:47]}  Rb8 {[%clk 0:02:16]} 23. b4 {[%clk 0:00:45]}  Bxe3 {[%clk 0:02:13]} 24. Qxe3 {[%clk 0:00:45]}  cxb4 {[%clk 0:02:14]} 25. Nxb6 {[%clk 0:00:44]}  bxa3 {[%clk 0:02:13]} 26. c5 {[%clk 0:00:44]}  Nhf6 {[%clk 0:02:12]} 27. d6 {[%clk 0:00:40]}  Qe6 {[%clk 0:02:11]} 28. Bd5 {[%clk 0:00:33]}  Nxd5 {[%clk 0:02:01]} 29. exd5 {[%clk 0:00:33]}  Qe8 {[%clk 0:02:02]} 30. d7 {[%clk 0:00:29]}  Qe7 {[%clk 0:02:01]} 31. d6 {[%clk 0:00:25]}  Qe6 {[%clk 0:02:01]} 32. c6 {[%clk 0:00:21]}  Qxd6 {[%clk 0:02:01]} 33. Rc1 {[%clk 0:00:17]}  Ne7 {[%clk 0:01:59]} 34. Rd2 {[%clk 0:00:16]}  Qc7 {[%clk 0:01:57]} 35. Nd5 {[%clk 0:00:15]}  Nxd5 {[%clk 0:01:57]} 36. Rxd5 {[%clk 0:00:16]}  f6 {[%clk 0:01:57]} 37. Qxa3 {[%clk 0:00:15]}  Kg8 {[%clk 0:01:49]} 38. Qd6 {[%clk 0:00:15]}  Rb2+ {[%clk 0:01:46]} 39. Kh1 {[%clk 0:00:15]}  Qb6 {[%clk 0:01:45]} 40. d8=Q {[%clk 0:00:14]}  Rh2+ {[%clk 0:01:41]} 41. Kxh2 {[%clk 0:00:14]}  Qf2+ {[%clk 0:01:41]} 42. Kh1 {[%clk 0:00:15]}  Qf3+ {[%clk 0:01:42]} 43. Kh2 {[%clk 0:00:15]}  Qf2+ {[%clk 0:01:42]} 44. Kh1 {[%clk 0:00:15]}  Qf3+ {[%clk 0:01:43]} 45. Kg1 {[%clk 0:00:14]}  Qxg3+ {[%clk 0:01:43]} 46. Kh1 {[%clk 0:00:12]}  Qxh3+ {[%clk 0:01:42]} 47. Kg1 {[%clk 0:00:12]}  Qe3+ {[%clk 0:01:42]} 48. Kg2 {[%clk 0:00:11]}  Qe2+ {[%clk 0:01:42]} 49. Kh1 {[%clk 0:00:11]}  Qf3+ {[%clk 0:01:42]} 50. Kh2 {[%clk 0:00:11]}  Qf2+ {[%clk 0:01:42]} 51. Kh1 {[%clk 0:00:11]}  Qf3+ {[%clk 0:01:42]} 52. Kh2 {[%clk 0:00:12]}  Qh5+ {[%clk 0:01:42]} 53. Kg2 {[%clk 0:00:12]}  Qg4+ {[%clk 0:01:42]} 54. Kh2 {[%clk 0:00:12]}  Qe2+ {[%clk 0:01:40]} 55. Kh1 {[%clk 0:00:12]}  Qf3+ {[%clk 0:01:40]} 1/2-1/2


[Site "https://www.chess.com"]

[Event "Titled Tuesday Blitz May 11 2021"]
[White "Barp, Alberto"]
[Black "Dobrov, Vladimir"]
[WhiteFideId "872555"]
[BlackFideId "4136594"]
[WhiteElo "2229"]
[BlackElo "2614"]
[Result "1-0"]
[Round "02"]
[TimeControl "180+1"]
[Date "2021.05.11"]
[WhiteClock "0:00:20"]
[BlackClock "0:00:08"]

1. d4 {[%clk 0:03:00]}  Nf6 {[%clk 0:02:59]} 2. c4 {[%clk 0:02:56]}  c5 {[%clk 0:02:57]} 3. d5 {[%clk 0:02:40]}  b5 {[%clk 0:02:56]} 4. cxb5 {[%clk 0:02:41]}  a6 {[%clk 0:02:56]} 5. bxa6 {[%clk 0:02:42]}  g6 {[%clk 0:02:56]} 6. Nc3 {[%clk 0:02:43]}  Bxa6 {[%clk 0:02:56]} 7. e4 {[%clk 0:02:43]}  Bxf1 {[%clk 0:02:56]} 8. Kxf1 {[%clk 0:02:44]}  d6 {[%clk 0:02:57]} 9. Nf3 {[%clk 0:02:42]}  Nbd7 {[%clk 0:02:56]} 10. g3 {[%clk 0:02:43]}  Bg7 {[%clk 0:02:55]} 11. Kg2 {[%clk 0:02:40]}  O-O {[%clk 0:02:54]} 12. a4 {[%clk 0:02:40]}  Qa5 {[%clk 0:02:54]} 13. Bd2 {[%clk 0:02:36]}  Qb4 {[%clk 0:02:46]} 14. Qc2 {[%clk 0:02:34]}  Rfb8 {[%clk 0:02:45]} 15. Rhb1 {[%clk 0:02:31]}  Qb3 {[%clk 0:02:35]} 16. Ne1 {[%clk 0:02:23]}  Ne5 {[%clk 0:02:20]} 17. Bc1 {[%clk 0:02:04]}  Nc4 {[%clk 0:02:05]} 18. Ra2 {[%clk 0:01:56]}  Nd7 {[%clk 0:01:58]} 19. Rba1 {[%clk 0:01:31]}  Ra5 {[%clk 0:01:26]} 20. Qe2 {[%clk 0:01:11]}  Bxc3 {[%clk 0:00:56]} 21. bxc3 {[%clk 0:01:10]}  Qxc3 {[%clk 0:00:53]} 22. Bg5 {[%clk 0:01:05]}  f6 {[%clk 0:00:23]} 23. Rc1 {[%clk 0:01:03]}  Qb3 {[%clk 0:00:23]} 24. Rxc4 {[%clk 0:01:00]}  fxg5 {[%clk 0:00:23]} 25. Rcc2 {[%clk 0:01:00]}  Qb7 {[%clk 0:00:18]} 26. Qg4 {[%clk 0:00:56]}  Nf6 {[%clk 0:00:16]} 27. Qe6+ {[%clk 0:00:56]}  Kf8 {[%clk 0:00:15]} 28. Nf3 {[%clk 0:00:56]}  Qd7 {[%clk 0:00:13]} 29. Nxg5 {[%clk 0:00:56]}  Qxe6 {[%clk 0:00:13]} 30. Nxe6+ {[%clk 0:00:57]}  Kf7 {[%clk 0:00:13]} 31. Rc4 {[%clk 0:00:50]}  Rb4 {[%clk 0:00:12]} 32. Rxb4 {[%clk 0:00:44]}  cxb4 {[%clk 0:00:13]} 33. f3 {[%clk 0:00:43]}  Nd7 {[%clk 0:00:13]} 34. Nd8+ {[%clk 0:00:37]}  Ke8 {[%clk 0:00:13]} 35. Nc6 {[%clk 0:00:38]}  b3 {[%clk 0:00:13]} 36. Rb2 {[%clk 0:00:37]}  Rxa4 {[%clk 0:00:14]} 37. Rxb3 {[%clk 0:00:37]}  Ra2+ {[%clk 0:00:14]} 38. Kh3 {[%clk 0:00:37]}  Rf2 {[%clk 0:00:12]} 39. g4 {[%clk 0:00:29]}  g5 {[%clk 0:00:12]} 40. Kg3 {[%clk 0:00:29]}  Re2 {[%clk 0:00:12]} 41. Ra3 {[%clk 0:00:28]}  Re1 {[%clk 0:00:09]} 42. Ra8+ {[%clk 0:00:25]}  Kf7 {[%clk 0:00:10]} 43. Ra7 {[%clk 0:00:26]}  Ke8 {[%clk 0:00:10]} 44. Ra8+ {[%clk 0:00:26]}  Kf7 {[%clk 0:00:10]} 45. Nd8+ {[%clk 0:00:26]}  Kf6 {[%clk 0:00:10]} 46. Ne6 {[%clk 0:00:23]}  Ne5 {[%clk 0:00:07]} 47. Rf8+ {[%clk 0:00:23]}  Kg6 {[%clk 0:00:07]} 48. Rf5 {[%clk 0:00:22]}  h6 {[%clk 0:00:06]} 49. h4 {[%clk 0:00:21]}  gxh4+ {[%clk 0:00:07]} 50. Kxh4 {[%clk 0:00:22]}  Rh1+ {[%clk 0:00:07]} 51. Kg3 {[%clk 0:00:22]}  Rg1+ {[%clk 0:00:08]} 52. Kf2 {[%clk 0:00:21]}  Ra1 {[%clk 0:00:09]} 53. Nf4+ {[%clk 0:00:21]}  Kg7 {[%clk 0:00:09]} 54. Nh5+ {[%clk 0:00:21]}  Kg6 {[%clk 0:00:09]} 55. Nf4+ {[%clk 0:00:20]}  Kg7 {[%clk 0:00:09]} 56. Kg3 {[%clk 0:00:21]}  Ra3 {[%clk 0:00:09]} 57. Ne6+ {[%clk 0:00:19]}  Kg6 {[%clk 0:00:09]} 58. g5 {[%clk 0:00:18]}  h5 {[%clk 0:00:08]} 59. Nf4+ {[%clk 0:00:18]}  Kh7 {[%clk 0:00:07]} 60. Nxh5 {[%clk 0:00:17]}  Rb3 {[%clk 0:00:06]} 61. Kf2 {[%clk 0:00:09]}  Rb2+ {[%clk 0:00:06]} 62. Ke3 {[%clk 0:00:09]}  Rb3+ {[%clk 0:00:07]} 63. Ke2 {[%clk 0:00:09]}  Rb2+ {[%clk 0:00:07]} 64. Kf1 {[%clk 0:00:09]}  Rb3 {[%clk 0:00:08]} 65. Kg2 {[%clk 0:00:10]}  Rb2+ {[%clk 0:00:08]} 66. Kh3 {[%clk 0:00:10]}  Rb3 {[%clk 0:00:09]} 67. Ng3 {[%clk 0:00:10]}  Nxf3 {[%clk 0:00:09]} 68. Kg4 {[%clk 0:00:09]}  Ne5+ {[%clk 0:00:08]} 69. Kh4 {[%clk 0:00:09]}  Kg6 {[%clk 0:00:08]} 70. Nh5 {[%clk 0:00:08]}  Nf7 {[%clk 0:00:07]} 71. Nf4+ {[%clk 0:00:07]}  Kg7 {[%clk 0:00:08]} 72. Ne6+ {[%clk 0:00:08]}  Kg6 {[%clk 0:00:08]} 73. Nf4+ {[%clk 0:00:08]}  Kg7 {[%clk 0:00:08]} 74. Kg4 {[%clk 0:00:09]}  Ne5+ {[%clk 0:00:09]} 75. Kh5 {[%clk 0:00:09]}  Rb4 {[%clk 0:00:09]} 76. Ne6+ {[%clk 0:00:10]}  Kh7 {[%clk 0:00:09]} 77. g6+ {[%clk 0:00:11]}  Nxg6 {[%clk 0:00:08]} 78. Rf7+ {[%clk 0:00:11]}  Kg8 {[%clk 0:00:09]} 79. Kxg6 {[%clk 0:00:11]}  Rb8 {[%clk 0:00:09]} 80. Rg7+ {[%clk 0:00:11]}  Kh8 {[%clk 0:00:09]} 81. Rxe7 {[%clk 0:00:12]}  Rg8+ {[%clk 0:00:09]} 82. Kh6 {[%clk 0:00:13]}  Rf8 {[%clk 0:00:07]} 83. Rh7+ {[%clk 0:00:12]}  Kg8 {[%clk 0:00:07]} 84. Rg7+ {[%clk 0:00:13]}  Kh8 {[%clk 0:00:07]} 85. Rg6 {[%clk 0:00:13]}  Rf7 {[%clk 0:00:06]} 86. Kg5 {[%clk 0:00:13]}  Rf1 {[%clk 0:00:06]} 87. Rf6 {[%clk 0:00:13]}  Rg1+ {[%clk 0:00:06]} 88. Kf5 {[%clk 0:00:13]}  Re1 {[%clk 0:00:07]} 89. Rh6+ {[%clk 0:00:13]}  Kg8 {[%clk 0:00:06]} 90. Rh4 {[%clk 0:00:14]}  Kf7 {[%clk 0:00:07]} 91. Rf4 {[%clk 0:00:15]}  Ke7 {[%clk 0:00:06]} 92. Nd4 {[%clk 0:00:15]}  Rg1 {[%clk 0:00:06]} 93. Nc6+ {[%clk 0:00:15]}  Kf7 {[%clk 0:00:05]} 94. e5 {[%clk 0:00:16]}  dxe5 {[%clk 0:00:06]} 95. Kxe5+ {[%clk 0:00:16]}  Ke8 {[%clk 0:00:07]} 96. Rf6 {[%clk 0:00:16]}  Kd7 {[%clk 0:00:06]} 97. Rf7+ {[%clk 0:00:17]}  Ke8 {[%clk 0:00:07]} 98. Re7+ {[%clk 0:00:17]}  Kf8 {[%clk 0:00:07]} 99. Kd6 {[%clk 0:00:17]}  Rg5 {[%clk 0:00:07]} 100. Re6 {[%clk 0:00:18]}  Kf7 {[%clk 0:00:06]} 101. Re5 {[%clk 0:00:18]}  Rg6+ {[%clk 0:00:06]} 102. Kd7 {[%clk 0:00:19]}  Rg3 {[%clk 0:00:07]} 103. d6 {[%clk 0:00:19]}  Rd3 {[%clk 0:00:08]} 104. Nd8+ {[%clk 0:00:18]}  Kf6 {[%clk 0:00:08]} 105. Re6+ {[%clk 0:00:19]}  Kf5 {[%clk 0:00:08]} 106. Rh6 {[%clk 0:00:19]}  Kg5 {[%clk 0:00:08]} 107. Re6 {[%clk 0:00:18]}  Kf5 {[%clk 0:00:09]} 108. Ke7 {[%clk 0:00:19]}  Rh3 {[%clk 0:00:08]} 109. d7 {[%clk 0:00:19]}  Rh7+ {[%clk 0:00:08]} 110. Nf7 {[%clk 0:00:20]} 1-0


[Site "https://www.chess.com"]